[Event "Titled Tuesday Blitz August 1 Late 2023"]
[White "Ashraf, Artin"]
[Black "Jakubowski, Krzysztof"]
[WhiteFideId "22514805"]
[BlackFideId "1112848"]
[WhiteElo "2821"]
[BlackElo "2666"]
[Result "0-1"]
[Round "11"]
[TimeControl "180+1"]
[Date "2023.08.01"]
[WhiteClock "0:00:01"]
[BlackClock "0:00:04"]
[Board "17"]

1. d4 {[%clk 0:03:00]}  Nf6 {[%clk 0:02:59]} 2. c4 {[%clk 0:03:00]}  e6 {[%clk 0:02:59]} 3. Nc3 {[%clk 0:03:01]}  Bb4 {[%clk 0:02:59]} 4. e3 {[%clk 0:03:00]}  O-O {[%clk 0:02:57]} 5. Ne2 {[%clk 0:03:00]}  d5 {[%clk 0:02:53]} 6. a3 {[%clk 0:02:58]}  Be7 {[%clk 0:02:52]} 7. Ng3 {[%clk 0:02:49]}  Re8 {[%clk 0:02:43]} 8. cxd5 {[%clk 0:02:45]}  exd5 {[%clk 0:02:43]} 9. Bd3 {[%clk 0:02:46]}  Nbd7 {[%clk 0:02:37]} 10. O-O {[%clk 0:02:43]}  g6 {[%clk 0:02:28]} 11. Qf3 {[%clk 0:02:07]}  Nb6 {[%clk 0:02:21]} 12. Qd1 {[%clk 0:02:01]}  a5 {[%clk 0:02:19]} 13. f3 {[%clk 0:01:51]}  c5 {[%clk 0:02:14]} 14. Nge2 {[%clk 0:01:51]}  Bd7 {[%clk 0:02:09]} 15. dxc5 {[%clk 0:01:42]}  Bxc5 {[%clk 0:02:08]} 16. Nd4 {[%clk 0:01:42]}  Qe7 {[%clk 0:02:05]} 17. b3 {[%clk 0:01:38]}  Rac8 {[%clk 0:02:02]} 18. Nce2 {[%clk 0:01:38]}  h5 {[%clk 0:02:00]} 19. Ra2 {[%clk 0:01:33]}  a4 {[%clk 0:01:59]} 20. b4 {[%clk 0:01:31]}  Bd6 {[%clk 0:01:59]} 21. Qe1 {[%clk 0:01:20]}  Nc4 {[%clk 0:01:53]} 22. Bxc4 {[%clk 0:01:19]}  Rxc4 {[%clk 0:01:48]} 23. Qh4 {[%clk 0:00:56]}  Rec8 {[%clk 0:01:37]} 24. Kh1 {[%clk 0:00:56]}  Nh7 {[%clk 0:01:26]} 25. Qf2 {[%clk 0:00:51]}  Ng5 {[%clk 0:01:24]} 26. Rd2 {[%clk 0:00:45]}  Be5 {[%clk 0:01:18]} 27. Bb2 {[%clk 0:00:41]}  Qd6 {[%clk 0:01:15]} 28. h3 {[%clk 0:00:23]}  Bg7 {[%clk 0:01:12]} 29. Qh4 {[%clk 0:00:21]}  Ne6 {[%clk 0:01:10]} 30. Qf2 {[%clk 0:00:21]}  Nc7 {[%clk 0:01:08]} 31. Rfd1 {[%clk 0:00:20]}  Re8 {[%clk 0:01:08]} 32. Nf4 {[%clk 0:00:19]}  Bh6 {[%clk 0:01:05]} 33. Nde2 {[%clk 0:00:17]}  Bc6 {[%clk 0:01:00]} 34. Nd4 {[%clk 0:00:07]}  Qe7 {[%clk 0:00:58]} 35. Re2 {[%clk 0:00:05]}  Qg5 {[%clk 0:00:45]} 36. Rde1 {[%clk 0:00:04]}  h4 {[%clk 0:00:44]} 37. Nd3 {[%clk 0:00:04]}  Nb5 {[%clk 0:00:39]} 38. Nxb5 {[%clk 0:00:03]}  Bxb5 {[%clk 0:00:39]} 39. Bd4 {[%clk 0:00:03]}  Rc6 {[%clk 0:00:38]} 40. Rd2 {[%clk 0:00:03]}  Rec8 {[%clk 0:00:37]} 41. Nc5 {[%clk 0:00:03]}  Qe7 {[%clk 0:00:35]} 42. Nd3 {[%clk 0:00:02]}  Rc4 {[%clk 0:00:32]} 43. Red1 {[%clk 0:00:03]}  Qe6 {[%clk 0:00:30]} 44. Nf4 {[%clk 0:00:03]}  Qf5 {[%clk 0:00:29]} 45. Qxh4 {[%clk 0:00:03]}  Qg5 {[%clk 0:00:15]} 46. Qxg5 {[%clk 0:00:03]}  Bxg5 {[%clk 0:00:16]} 47. Nxd5 {[%clk 0:00:03]}  Rc2 {[%clk 0:00:13]} 48. g4 {[%clk 0:00:02]}  Be2 {[%clk 0:00:10]} 49. Rxc2 {[%clk 0:00:01]}  Rxc2 {[%clk 0:00:09]} 50. Re1 {[%clk 0:00:01]}  Bxf3+ {[%clk 0:00:09]} 51. Kg1 {[%clk 0:00:02]}  Bh4 {[%clk 0:00:10]} 52. Nf6+ {[%clk 0:00:01]}  Kf8 {[%clk 0:00:09]} 53. Ra1 {[%clk 0:00:02]}  Bf2+ {[%clk 0:00:07]} 54. Kf1 {[%clk 0:00:03]}  Bg3 {[%clk 0:00:07]} 55. Nd7+ {[%clk 0:00:03]}  Ke7 {[%clk 0:00:07]} 56. Ne5 {[%clk 0:00:04]}  Bg2+ {[%clk 0:00:06]} 57. Kg1 {[%clk 0:00:04]}  Be4 {[%clk 0:00:07]} 58. Rd1 {[%clk 0:00:03]}  Rh2 {[%clk 0:00:05]} 59. Bc5+ {[%clk 0:00:04]}  Ke6 {[%clk 0:00:05]} 60. Rd6+ {[%clk 0:00:01]}  Kxe5 {[%clk 0:00:04]} 61. Rd7 {[%clk 0:00:01]}  Rh1# {[%clk 0:00:04]} 0-1


[Site "https://www.chess.com"]

[Event "Titled Tuesday Blitz August 1 Late 2023"]
[White "Ozates, Tuna"]
[Black "Bauman_Guy"]
[WhiteFideId "6354521"]
[WhiteElo "2627"]
[BlackElo "2817"]
[Result "1-0"]
[Round "11"]
[TimeControl "180+1"]
[Date "2023.08.01"]
[WhiteClock "0:00:04"]
[BlackClock "0:00:00"]
[Board "18"]

1. e4 {[%clk 0:03:00]}  c5 {[%clk 0:02:59]} 2. Nf3 {[%clk 0:03:00]}  d6 {[%clk 0:03:00]} 3. Bb5+ {[%clk 0:02:59]}  Nd7 {[%clk 0:03:00]} 4. c3 {[%clk 0:02:59]}  a6 {[%clk 0:03:00]} 5. Ba4 {[%clk 0:03:00]}  g6 {[%clk 0:03:01]} 6. d4 {[%clk 0:02:59]}  Bg7 {[%clk 0:03:00]} 7. O-O {[%clk 0:03:00]}  b5 {[%clk 0:03:01]} 8. Bc2 {[%clk 0:02:59]}  Bb7 {[%clk 0:03:00]} 9. Re1 {[%clk 0:03:00]}  e5 {[%clk 0:03:01]} 10. Be3 {[%clk 0:02:57]}  Ngf6 {[%clk 0:02:59]} 11. Nbd2 {[%clk 0:02:55]}  O-O {[%clk 0:02:58]} 12. a4 {[%clk 0:02:54]}  Qc7 {[%clk 0:02:57]} 13. h3 {[%clk 0:02:50]}  Nh5 {[%clk 0:02:55]} 14. Bd3 {[%clk 0:02:46]}  c4 {[%clk 0:02:55]} 15. Bc2 {[%clk 0:02:45]}  Rfe8 {[%clk 0:02:52]} 16. Nh2 {[%clk 0:02:22]}  d5 {[%clk 0:02:43]} 17. Ng4 {[%clk 0:02:10]}  dxe4 {[%clk 0:02:39]} 18. Nh6+ {[%clk 0:02:11]}  Kf8 {[%clk 0:02:31]} 19. d5 {[%clk 0:01:56]}  Nf4 {[%clk 0:02:26]} 20. d6 {[%clk 0:01:29]}  Qb8 {[%clk 0:02:18]} 21. Nxf7 {[%clk 0:01:17]}  Kxf7 {[%clk 0:02:15]} 22. Bxf4 {[%clk 0:01:14]}  exf4 {[%clk 0:02:13]} 23. Nxe4 {[%clk 0:01:15]}  Kg8 {[%clk 0:01:53]} 24. Qg4 {[%clk 0:01:11]}  Ne5 {[%clk 0:01:49]} 25. Qxf4 {[%clk 0:01:11]}  Rf8 {[%clk 0:01:17]} 26. Qg3 {[%clk 0:01:11]}  Nd3 {[%clk 0:01:03]} 27. Bxd3 {[%clk 0:01:10]}  cxd3 {[%clk 0:01:03]} 28. Qxd3 {[%clk 0:01:11]}  Qa7 {[%clk 0:01:03]} 29. axb5 {[%clk 0:01:02]}  Bxe4 {[%clk 0:01:01]} 30. Qxe4 {[%clk 0:01:02]}  Qxf2+ {[%clk 0:01:00]} 31. Kh1 {[%clk 0:01:02]}  a5 {[%clk 0:00:46]} 32. d7 {[%clk 0:00:49]}  Rad8 {[%clk 0:00:39]} 33. Rad1 {[%clk 0:00:29]}  Qxb2 {[%clk 0:00:29]} 34. c4 {[%clk 0:00:29]}  a4 {[%clk 0:00:27]} 35. c5 {[%clk 0:00:20]}  Qxb5 {[%clk 0:00:21]} 36. c6 {[%clk 0:00:21]}  Qa5 {[%clk 0:00:19]} 37. Qc4+ {[%clk 0:00:13]}  Kh8 {[%clk 0:00:17]} 38. Re7 {[%clk 0:00:10]}  Bf6 {[%clk 0:00:15]} 39. Re6 {[%clk 0:00:06]}  a3 {[%clk 0:00:11]} 40. Rxf6 {[%clk 0:00:04]}  Rxf6 {[%clk 0:00:09]} 41. c7 {[%clk 0:00:04]}  Rff8 {[%clk 0:00:06]} 42. c8=Q {[%clk 0:00:03]}  a2 {[%clk 0:00:04]} 43. Qc3+ {[%clk 0:00:03]}  Qxc3 {[%clk 0:00:05]} 44. Qxc3+ {[%clk 0:00:04]}  Kg8 {[%clk 0:00:05]} 45. Qb3+ {[%clk 0:00:04]}  Rf7 {[%clk 0:00:05]} 46. Qxa2 {[%clk 0:00:04]}  Kg7 {[%clk 0:00:06]} 47. Qe6 {[%clk 0:00:05]}  Rff8 {[%clk 0:00:04]} 48. Qe7+ {[%clk 0:00:04]}  Kh6 {[%clk 0:00:05]} 49. Rd4 {[%clk 0:00:04]}  g5 {[%clk 0:00:04]} 50. Rd6+ {[%clk 0:00:04]}  Kh5 {[%clk 0:00:04]} 51. g4+ {[%clk 0:00:04]}  Kh4 {[%clk 0:00:04]} 52. Rh6+ {[%clk 0:00:05]}  Kg3 {[%clk 0:00:04]} 53. Qe1+ {[%clk 0:00:04]}  Kf3 {[%clk 0:00:00]} 54. Re6 {[%clk 0:00:04]} 1-0


[Site "https://www.chess.com"]

[Event "Titled Tuesday Blitz August 1 Late 2023"]
[White "Tsaruk, Maksim"]
[Black "Domingo Nunez, Ruben"]
[WhiteFideId "13511173"]
[BlackFideId "22245570"]
[WhiteElo "2758"]
[BlackElo "2594"]
[Result "0-1"]
[Round "11"]
[TimeControl "180+1"]
[Date "2023.08.01"]
[WhiteClock "0:00:02"]
[BlackClock "0:00:04"]
[Board "20"]

1. e4 {[%clk 0:03:00]}  g6 {[%clk 0:02:59]} 2. Nf3 {[%clk 0:03:01]}  Bg7 {[%clk 0:03:00]} 3. d4 {[%clk 0:03:02]}  c6 {[%clk 0:03:01]} 4. c3 {[%clk 0:03:02]}  d5 {[%clk 0:03:02]} 5. e5 {[%clk 0:03:03]}  f6 {[%clk 0:03:02]} 6. h3 {[%clk 0:03:03]}  Be6 {[%clk 0:03:02]} 7. exf6 {[%clk 0:03:03]}  exf6 {[%clk 0:03:02]} 8. Bd3 {[%clk 0:03:03]}  Ne7 {[%clk 0:03:00]} 9. O-O {[%clk 0:03:04]}  O-O {[%clk 0:03:01]} 10. Re1 {[%clk 0:03:04]}  Bf7 {[%clk 0:03:01]} 11. Nbd2 {[%clk 0:03:03]}  Re8 {[%clk 0:03:01]} 12. Nf1 {[%clk 0:03:03]}  Nd7 {[%clk 0:03:01]} 13. Ng3 {[%clk 0:03:02]}  Nf8 {[%clk 0:03:01]} 14. Bd2 {[%clk 0:02:57]}  Qd6 {[%clk 0:03:02]} 15. Qc1 {[%clk 0:02:57]}  g5 {[%clk 0:03:00]} 16. h4 {[%clk 0:02:53]}  h6 {[%clk 0:02:59]} 17. hxg5 {[%clk 0:02:16]}  hxg5 {[%clk 0:02:51]} 18. Qc2 {[%clk 0:02:16]}  Bg6 {[%clk 0:02:04]} 19. Re2 {[%clk 0:02:10]}  Qd7 {[%clk 0:01:54]} 20. Rae1 {[%clk 0:02:09]}  Kf7 {[%clk 0:01:54]} 21. b3 {[%clk 0:00:52]}  Bxd3 {[%clk 0:01:40]} 22. Qxd3 {[%clk 0:00:53]}  Neg6 {[%clk 0:01:40]} 23. Nf5 {[%clk 0:00:42]}  Rxe2 {[%clk 0:01:40]} 24. Rxe2 {[%clk 0:00:42]}  Re8 {[%clk 0:01:30]} 25. Rxe8 {[%clk 0:00:43]}  Kxe8 {[%clk 0:01:31]} 26. c4 {[%clk 0:00:43]}  Kf7 {[%clk 0:01:27]} 27. c5 {[%clk 0:00:40]}  Ne7 {[%clk 0:01:06]} 28. Nd6+ {[%clk 0:00:40]}  Kg8 {[%clk 0:01:07]} 29. Nh2 {[%clk 0:00:21]}  Nc8 {[%clk 0:01:03]} 30. Nf5 {[%clk 0:00:18]}  Ne7 {[%clk 0:01:01]} 31. Ng3 {[%clk 0:00:16]}  Bh6 {[%clk 0:00:44]} 32. f3 {[%clk 0:00:16]}  f5 {[%clk 0:00:43]} 33. Nh5 {[%clk 0:00:12]}  Kf7 {[%clk 0:00:41]} 34. g4 {[%clk 0:00:09]}  f4 {[%clk 0:00:33]} 35. Nf1 {[%clk 0:00:08]}  Neg6 {[%clk 0:00:30]} 36. Bc3 {[%clk 0:00:06]}  Nh4 {[%clk 0:00:30]} 37. Kf2 {[%clk 0:00:06]}  Qe6 {[%clk 0:00:30]} 38. Nd2 {[%clk 0:00:05]}  Nfg6 {[%clk 0:00:28]} 39. b4 {[%clk 0:00:05]}  a6 {[%clk 0:00:21]} 40. a4 {[%clk 0:00:05]}  Qe8 {[%clk 0:00:21]} 41. b5 {[%clk 0:00:06]}  axb5 {[%clk 0:00:21]} 42. axb5 {[%clk 0:00:07]}  cxb5 {[%clk 0:00:22]} 43. Nb3 {[%clk 0:00:06]}  Bf8 {[%clk 0:00:19]} 44. Na5 {[%clk 0:00:06]}  Qd7 {[%clk 0:00:17]} 45. Bb4 {[%clk 0:00:07]}  Be7 {[%clk 0:00:14]} 46. Nb3 {[%clk 0:00:05]}  Qe6 {[%clk 0:00:11]} 47. Nd2 {[%clk 0:00:05]}  Qa6 {[%clk 0:00:11]} 48. Qb3 {[%clk 0:00:02]}  Ke6 {[%clk 0:00:10]} 49. Nb1 {[%clk 0:00:02]}  Qa4 {[%clk 0:00:04]} 50. Qd3 {[%clk 0:00:01]}  Qa2+ {[%clk 0:00:03]} 51. Nd2 {[%clk 0:00:01]}  Qa1 {[%clk 0:00:03]} 52. Qe2+ {[%clk 0:00:02]}  Kf7 {[%clk 0:00:03]} 53. Qd3 {[%clk 0:00:02]}  Qh1 {[%clk 0:00:03]} 54. Qf1 {[%clk 0:00:02]}  Qh2+ {[%clk 0:00:03]} 55. Ke1 {[%clk 0:00:03]}  Ng2+ {[%clk 0:00:03]} 56. Ke2 {[%clk 0:00:02]}  Ne3+ {[%clk 0:00:03]} 57. Qf2 {[%clk 0:00:02]}  Qh1 {[%clk 0:00:03]} 58. Kd3 {[%clk 0:00:02]}  Qd1 {[%clk 0:00:03]} 59. Qe2 {[%clk 0:00:02]}  Qc2# {[%clk 0:00:04]} 0-1


[Site "https://www.chess.com"]

[Event "Titled Tuesday Blitz August 1 Late 2023"]
[White "Fiorito, Joaquin"]
[Black "Haszon, David"]
[WhiteFideId "180173"]
[BlackFideId "733610"]
[WhiteElo "2684"]
[BlackElo "2540"]
[Result "0-1"]
[Round "11"]
[TimeControl "180+1"]
[Date "2023.08.01"]
[WhiteClock "0:00:13"]
[BlackClock "0:00:46"]
[Board "24"]

1. d4 {[%clk 0:02:58]}  Nf6 {[%clk 0:03:00]} 2. Nc3 {[%clk 0:02:57]}  d5 {[%clk 0:03:00]} 3. Bf4 {[%clk 0:02:57]}  e6 {[%clk 0:02:58]} 4. Nb5 {[%clk 0:02:57]}  Bd6 {[%clk 0:02:57]} 5. Nxd6+ {[%clk 0:02:57]}  cxd6 {[%clk 0:02:58]} 6. Nf3 {[%clk 0:02:57]}  O-O {[%clk 0:02:59]} 7. e3 {[%clk 0:02:58]}  Nc6 {[%clk 0:02:59]} 8. Be2 {[%clk 0:02:59]}  Re8 {[%clk 0:03:00]} 9. O-O {[%clk 0:03:00]}  e5 {[%clk 0:03:00]} 10. Bg5 {[%clk 0:03:00]}  h6 {[%clk 0:03:00]} 11. Bxf6 {[%clk 0:03:01]}  Qxf6 {[%clk 0:03:01]} 12. dxe5 {[%clk 0:03:02]}  dxe5 {[%clk 0:03:01]} 13. Qxd5 {[%clk 0:03:02]}  Be6 {[%clk 0:03:01]} 14. Qb5 {[%clk 0:02:58]}  Rab8 {[%clk 0:02:55]} 15. c3 {[%clk 0:02:57]}  a6 {[%clk 0:02:55]} 16. Qb6 {[%clk 0:02:55]}  Bg4 {[%clk 0:02:53]} 17. Rfe1 {[%clk 0:02:48]}  Re6 {[%clk 0:02:47]} 18. Qc5 {[%clk 0:02:17]}  e4 {[%clk 0:02:46]} 19. Nd4 {[%clk 0:02:15]}  Re5 {[%clk 0:02:40]} 20. Qb6 {[%clk 0:02:11]}  Nxd4 {[%clk 0:02:35]} 21. Qxd4 {[%clk 0:02:12]}  Bxe2 {[%clk 0:02:33]} 22. Rxe2 {[%clk 0:02:11]}  Rd8 {[%clk 0:02:34]} 23. Qa4 {[%clk 0:02:10]}  b5 {[%clk 0:02:29]} 24. Qc2 {[%clk 0:02:08]}  Rd3 {[%clk 0:02:19]} 25. a4 {[%clk 0:02:02]}  Rg5 {[%clk 0:02:14]} 26. axb5 {[%clk 0:01:48]}  Qf3 {[%clk 0:02:11]} 27. g3 {[%clk 0:01:47]}  axb5 {[%clk 0:02:11]} 28. Rd2 {[%clk 0:01:36]}  Rgd5 {[%clk 0:02:03]} 29. Rad1 {[%clk 0:01:24]}  Qf5 {[%clk 0:01:57]} 30. Rxd3 {[%clk 0:01:21]}  exd3 {[%clk 0:01:58]} 31. Qd2 {[%clk 0:01:21]}  h5 {[%clk 0:01:56]} 32. Kg2 {[%clk 0:01:15]}  h4 {[%clk 0:01:56]} 33. f3 {[%clk 0:01:16]}  h3+ {[%clk 0:01:52]} 34. Kf2 {[%clk 0:01:16]}  Qd7 {[%clk 0:01:51]} 35. e4 {[%clk 0:01:15]}  Rd6 {[%clk 0:01:50]} 36. Qe3 {[%clk 0:01:13]}  g6 {[%clk 0:01:48]} 37. b3 {[%clk 0:01:10]}  Kh7 {[%clk 0:01:42]} 38. Rd2 {[%clk 0:01:07]}  Kg8 {[%clk 0:01:41]} 39. Qc5 {[%clk 0:01:05]}  Kh7 {[%clk 0:01:32]} 40. Qe3 {[%clk 0:01:04]}  Kg8 {[%clk 0:01:32]} 41. c4 {[%clk 0:01:04]}  bxc4 {[%clk 0:01:30]} 42. bxc4 {[%clk 0:01:05]}  Qd8 {[%clk 0:01:03]} 43. c5 {[%clk 0:01:03]}  Rd7 {[%clk 0:01:03]} 44. f4 {[%clk 0:00:52]}  Qc7 {[%clk 0:00:59]} 45. Kf3 {[%clk 0:00:47]}  Qc6 {[%clk 0:00:58]} 46. Rxd3 {[%clk 0:00:33]}  Rxd3 {[%clk 0:00:58]} 47. Qxd3 {[%clk 0:00:34]}  Qxc5 {[%clk 0:00:58]} 48. Qf1 {[%clk 0:00:28]}  Qc3+ {[%clk 0:00:55]} 49. Kg4 {[%clk 0:00:28]}  Qc8+ {[%clk 0:00:53]} 50. f5 {[%clk 0:00:27]}  Qc2 {[%clk 0:00:50]} 51. Kxh3 {[%clk 0:00:17]}  Qxe4 {[%clk 0:00:50]} 52. f6 {[%clk 0:00:15]}  Qe6+ {[%clk 0:00:49]} 53. Kh4 {[%clk 0:00:13]}  Qe4+ {[%clk 0:00:48]} 54. Qf4 {[%clk 0:00:13]}  Qe2 {[%clk 0:00:46]} 55. h3 {[%clk 0:00:13]}  Qh5# {[%clk 0:00:46]} 0-1


[Site "https://www.chess.com"]

[Event "Titled Tuesday Blitz August 1 Late 2023"]
[White "Ovchinnikov, Vsevolod"]
[Black "Kanakaris, Georgios"]
[WhiteFideId "24176842"]
[BlackFideId "4209460"]
[WhiteElo "2647"]
[BlackElo "2535"]
[Result "1-0"]
[Round "11"]
[TimeControl "180+1"]
[Date "2023.08.01"]
[WhiteClock "0:00:09"]
[BlackClock "0:00:05"]
[Board "26"]

1. d4 {[%clk 0:03:00]}  Nf6 {[%clk 0:02:59]} 2. c4 {[%clk 0:03:01]}  g6 {[%clk 0:03:00]} 3. Nc3 {[%clk 0:03:01]}  Bg7 {[%clk 0:03:01]} 4. e4 {[%clk 0:03:01]}  d6 {[%clk 0:03:01]} 5. Nf3 {[%clk 0:03:02]}  O-O {[%clk 0:03:02]} 6. h3 {[%clk 0:03:02]}  Nc6 {[%clk 0:02:57]} 7. d5 {[%clk 0:03:02]}  Nb4 {[%clk 0:02:57]} 8. Be3 {[%clk 0:02:48]}  e6 {[%clk 0:02:55]} 9. a3 {[%clk 0:02:39]}  Na6 {[%clk 0:02:54]} 10. Be2 {[%clk 0:02:34]}  Re8 {[%clk 0:02:53]} 11. Nd2 {[%clk 0:02:34]}  exd5 {[%clk 0:02:47]} 12. cxd5 {[%clk 0:02:32]}  Nc5 {[%clk 0:02:47]} 13. Qc2 {[%clk 0:02:19]}  a5 {[%clk 0:02:37]} 14. O-O {[%clk 0:02:14]}  Qe7 {[%clk 0:02:29]} 15. Bf3 {[%clk 0:01:32]}  Nfd7 {[%clk 0:02:12]} 16. Rac1 {[%clk 0:01:14]}  a4 {[%clk 0:02:09]} 17. Rce1 {[%clk 0:01:01]}  b6 {[%clk 0:02:08]} 18. Be2 {[%clk 0:00:56]}  Qh4 {[%clk 0:01:18]} 19. Nf3 {[%clk 0:00:30]}  Qe7 {[%clk 0:01:11]} 20. Bg5 {[%clk 0:00:22]}  Bf6 {[%clk 0:01:04]} 21. Bh6 {[%clk 0:00:22]}  Ba6 {[%clk 0:00:43]} 22. Bxa6 {[%clk 0:00:21]}  Rxa6 {[%clk 0:00:44]} 23. Nb5 {[%clk 0:00:17]}  Ne5 {[%clk 0:00:38]} 24. Nfd4 {[%clk 0:00:16]}  Ned3 {[%clk 0:00:33]} 25. Re3 {[%clk 0:00:16]}  Ne5 {[%clk 0:00:13]} 26. f4 {[%clk 0:00:11]}  Ned7 {[%clk 0:00:05]} 27. Nc6 {[%clk 0:00:09]} 1-0


[Site "https://www.chess.com"]

[Event "Titled Tuesday Blitz August 1 Late 2023"]
[White "vishwa_vijeta"]
[Black "Toncheva, Nadya"]
[BlackFideId "2924056"]
[WhiteElo "2584"]
[BlackElo "2505"]
[Result "1/2-1/2"]
[Round "11"]
[TimeControl "180+1"]
[Date "2023.08.01"]
[WhiteClock "0:00:03"]
[BlackClock "0:00:08"]
[Board "27"]

1. e4 {[%clk 0:02:55]}  c5 {[%clk 0:03:00]} 2. Nf3 {[%clk 0:02:55]}  Nc6 {[%clk 0:03:00]} 3. d4 {[%clk 0:02:54]}  cxd4 {[%clk 0:03:01]} 4. Nxd4 {[%clk 0:02:53]}  g6 {[%clk 0:03:01]} 5. c4 {[%clk 0:02:52]}  Bg7 {[%clk 0:03:02]} 6. Be3 {[%clk 0:02:53]}  Nf6 {[%clk 0:03:02]} 7. Nc3 {[%clk 0:02:52]}  O-O {[%clk 0:03:03]} 8. Be2 {[%clk 0:02:50]}  d6 {[%clk 0:03:03]} 9. O-O {[%clk 0:02:48]}  Bd7 {[%clk 0:03:04]} 10. Qd2 {[%clk 0:02:48]}  Nxd4 {[%clk 0:03:04]} 11. Bxd4 {[%clk 0:02:48]}  Bc6 {[%clk 0:03:04]} 12. f3 {[%clk 0:02:48]}  a5 {[%clk 0:03:05]} 13. b3 {[%clk 0:02:48]}  Nd7 {[%clk 0:03:05]} 14. Be3 {[%clk 0:02:48]}  Nc5 {[%clk 0:03:06]} 15. Rab1 {[%clk 0:02:49]}  Qb6 {[%clk 0:03:06]} 16. Rfc1 {[%clk 0:02:49]}  Rfc8 {[%clk 0:03:06]} 17. Qc2 {[%clk 0:02:46]}  h5 {[%clk 0:02:49]} 18. a3 {[%clk 0:02:43]}  Qd8 {[%clk 0:02:50]} 19. b4 {[%clk 0:02:43]}  axb4 {[%clk 0:02:48]} 20. axb4 {[%clk 0:02:43]}  Na4 {[%clk 0:02:48]} 21. Nxa4 {[%clk 0:02:38]}  Bxa4 {[%clk 0:02:48]} 22. Qd2 {[%clk 0:02:38]}  Bd7 {[%clk 0:02:36]} 23. Bd4 {[%clk 0:02:35]}  Be6 {[%clk 0:02:28]} 24. Bxg7 {[%clk 0:02:33]}  Kxg7 {[%clk 0:02:29]} 25. Qd4+ {[%clk 0:02:19]}  f6 {[%clk 0:02:29]} 26. Ra1 {[%clk 0:02:15]}  Qc7 {[%clk 0:02:20]} 27. Rxa8 {[%clk 0:02:14]}  Rxa8 {[%clk 0:02:21]} 28. c5 {[%clk 0:02:13]}  dxc5 {[%clk 0:02:15]} 29. Rxc5 {[%clk 0:02:14]}  Qf4 {[%clk 0:02:09]} 30. g3 {[%clk 0:02:00]}  Qb8 {[%clk 0:02:07]} 31. e5 {[%clk 0:01:30]}  Ra2 {[%clk 0:01:47]} 32. Bf1 {[%clk 0:01:14]}  f5 {[%clk 0:01:34]} 33. Bc4 {[%clk 0:01:05]}  Bxc4 {[%clk 0:01:29]} 34. Rxc4 {[%clk 0:01:02]}  b5 {[%clk 0:01:18]} 35. Rc6 {[%clk 0:00:48]}  Qa8 {[%clk 0:01:10]} 36. e6+ {[%clk 0:00:43]}  Kh6 {[%clk 0:00:57]} 37. Qe3+ {[%clk 0:00:31]}  g5 {[%clk 0:00:43]} 38. Rc5 {[%clk 0:00:20]}  Ra1+ {[%clk 0:00:40]} 39. Kg2 {[%clk 0:00:15]}  Qa2+ {[%clk 0:00:38]} 40. Qf2 {[%clk 0:00:15]}  Qxe6 {[%clk 0:00:33]} 41. Rc2 {[%clk 0:00:10]}  Rd1 {[%clk 0:00:29]} 42. Re2 {[%clk 0:00:10]}  Qf6 {[%clk 0:00:28]} 43. Qe3 {[%clk 0:00:10]}  Rd7 {[%clk 0:00:26]} 44. h4 {[%clk 0:00:10]}  Kg6 {[%clk 0:00:24]} 45. hxg5 {[%clk 0:00:10]}  Qd6 {[%clk 0:00:20]} 46. Qb3 {[%clk 0:00:10]}  Qd5 {[%clk 0:00:18]} 47. Re6+ {[%clk 0:00:09]}  Kf7 {[%clk 0:00:13]} 48. Qxd5 {[%clk 0:00:07]}  Rxd5 {[%clk 0:00:14]} 49. Rb6 {[%clk 0:00:08]}  e5 {[%clk 0:00:08]} 50. Rf6+ {[%clk 0:00:07]}  Kg7 {[%clk 0:00:08]} 51. Rxf5 {[%clk 0:00:08]}  Kg6 {[%clk 0:00:08]} 52. Rf6+ {[%clk 0:00:08]}  Kxg5 {[%clk 0:00:08]} 53. Rb6 {[%clk 0:00:09]}  Kf5 {[%clk 0:00:06]} 54. Kh3 {[%clk 0:00:09]}  e4 {[%clk 0:00:06]} 55. fxe4+ {[%clk 0:00:06]}  Kxe4 {[%clk 0:00:07]} 56. Kh4 {[%clk 0:00:05]}  Kd4 {[%clk 0:00:08]} 57. Rc6 {[%clk 0:00:05]}  Re5 {[%clk 0:00:07]} 58. Rc1 {[%clk 0:00:04]}  Rf5 {[%clk 0:00:07]} 59. Rc2 {[%clk 0:00:04]}  Re5 {[%clk 0:00:07]} 60. Rc1 {[%clk 0:00:03]}  Rf5 {[%clk 0:00:08]} 61. Rc2 {[%clk 0:00:03]}  Re5 {[%clk 0:00:08]} 62. Rc1 {[%clk 0:00:03]} 1/2-1/2


[Site "https://www.chess.com"]

[Event "Titled Tuesday Blitz August 1 Late 2023"]
[White "Perez, Maximiliano"]
[Black "Hambleton, Aman"]
[WhiteFideId "117234"]
[BlackFideId "2606577"]
[WhiteElo "2564"]
[BlackElo "2773"]
[Result "0-1"]
[Round "11"]
[TimeControl "180+1"]
[Date "2023.08.01"]
[WhiteClock "0:00:06"]
[BlackClock "0:00:05"]
[Board "28"]

1. e4 {[%clk 0:03:00]}  b6 {[%clk 0:02:59]} 2. d4 {[%clk 0:03:00]}  Bb7 {[%clk 0:02:57]} 3. Bd3 {[%clk 0:03:01]}  e6 {[%clk 0:02:58]} 4. Qe2 {[%clk 0:03:00]}  d5 {[%clk 0:02:57]} 5. exd5 {[%clk 0:02:56]}  Qxd5 {[%clk 0:02:58]} 6. Nf3 {[%clk 0:02:56]}  Nf6 {[%clk 0:02:58]} 7. O-O {[%clk 0:02:55]}  Bd6 {[%clk 0:02:57]} 8. Re1 {[%clk 0:02:42]}  Qh5 {[%clk 0:02:56]} 9. Ne5 {[%clk 0:02:36]}  Qxe2 {[%clk 0:02:57]} 10. Rxe2 {[%clk 0:02:35]}  Nbd7 {[%clk 0:02:57]} 11. Nxd7 {[%clk 0:02:33]}  Nxd7 {[%clk 0:02:58]} 12. Nc3 {[%clk 0:02:33]}  a6 {[%clk 0:02:41]} 13. Ne4 {[%clk 0:02:33]}  Be7 {[%clk 0:02:40]} 14. Bf4 {[%clk 0:02:32]}  O-O-O {[%clk 0:02:40]} 15. c3 {[%clk 0:02:05]}  h6 {[%clk 0:02:13]} 16. h3 {[%clk 0:01:58]}  Nf6 {[%clk 0:01:44]} 17. Nxf6 {[%clk 0:01:37]}  Bxf6 {[%clk 0:01:45]} 18. Bc2 {[%clk 0:01:37]}  Rhe8 {[%clk 0:01:26]} 19. Rae1 {[%clk 0:01:35]}  Be7 {[%clk 0:01:14]} 20. Be5 {[%clk 0:01:33]}  Bd6 {[%clk 0:01:14]} 21. a4 {[%clk 0:01:20]}  Kd7 {[%clk 0:01:11]} 22. f3 {[%clk 0:01:12]}  f6 {[%clk 0:00:55]} 23. Bxd6 {[%clk 0:01:11]}  cxd6 {[%clk 0:00:56]} 24. f4 {[%clk 0:00:50]}  g5 {[%clk 0:00:48]} 25. fxg5 {[%clk 0:00:49]}  hxg5 {[%clk 0:00:47]} 26. c4 {[%clk 0:00:45]}  e5 {[%clk 0:00:17]} 27. d5 {[%clk 0:00:44]}  a5 {[%clk 0:00:12]} 28. b3 {[%clk 0:00:43]}  Ke7 {[%clk 0:00:12]} 29. Rf2 {[%clk 0:00:35]}  Rh8 {[%clk 0:00:11]} 30. Bf5 {[%clk 0:00:32]}  Bc8 {[%clk 0:00:11]} 31. Bxc8 {[%clk 0:00:20]}  Rxc8 {[%clk 0:00:12]} 32. Ref1 {[%clk 0:00:20]}  Rcf8 {[%clk 0:00:13]} 33. Rb2 {[%clk 0:00:17]}  Rh4 {[%clk 0:00:09]} 34. Rc1 {[%clk 0:00:15]}  Rc8 {[%clk 0:00:07]} 35. Kf2 {[%clk 0:00:15]}  f5 {[%clk 0:00:07]} 36. Ke3 {[%clk 0:00:14]}  Kf6 {[%clk 0:00:05]} 37. Rbc2 {[%clk 0:00:13]}  g4 {[%clk 0:00:03]} 38. hxg4 {[%clk 0:00:13]}  Rxg4 {[%clk 0:00:04]} 39. Kf3 {[%clk 0:00:13]}  Rcg8 {[%clk 0:00:04]} 40. Rb2 {[%clk 0:00:06]}  Rg3+ {[%clk 0:00:05]} 0-1


[Site "https://www.chess.com"]